fUSD/lending_fUSD_20240222
["ID","MTS","AMOUNT","RATE_DAILY","PERIOD"]
[314850590,1708593063820,-500.0,0.0003589,2]
[314850591,1708593063830,-500.0,0.0003589,2]
[314850592,1708593063839,-514.5645032,0.0003589,2]
[314850593,1708593063849,-500.0,0.0003589,2]
[314850594,1708593063859,-500.0,0.0003589,2]
[314850595,1708593063869,-1000.0,0.0003589,7]
[314850596,1708593063881,-500.0,0.0003589,2]
[314850597,1708593063891,-502.35759586,0.0003589,2]
[314850598,1708593063901,-500.0,0.0003589,2]
[314850599,1708593063911,-528.58,0.0003589,2]
[314850600,1708593063921,-500.0,0.0003589,2]
[314850601,1708593063930,-847.24,0.0003589,2]
[314850602,1708593063940,-500.0,0.0003589,2]
[314850603,1708593063949,-500.0,0.0003589,2]
[314850604,1708593063959,-153.35912939,0.0003589,2]
[314850605,1708593063969,-500.0,0.0003589,2]
[314850606,1708593063979,-1059.56,0.0003589,2]
[314850607,1708593063989,-500.0,0.0003589,2]
[314850608,1708593063998,-500.0,0.0003589,2]
[314850609,1708593064008,-557.57,0.0003589,2]
[314850610,1708593064018,-500.0,0.0003589,2]
[314850611,1708593064028,-500.0,0.0003589,2]
[314850612,1708593064038,-500.0,0.0003589,2]
[314850613,1708593064047,-714.66,0.0003589,2]
[314850614,1708593064057,-809.43,0.0003589,2]
[314850615,1708593064067,-500.0,0.0003589,2]
[314850616,1708593064080,-500.0,0.0003589,2]
[314850617,1708593064090,-500.0,0.0003589,2]
[314850618,1708593064099,-500.0,0.0003589,2]
[314850619,1708593064109,-500.0,0.0003589,2]
[314850620,1708593064118,-500.0,0.0003589,2]
[314850621,1708593064128,-485.74329061,0.0003589,2]
[314850622,1708593064138,-500.0,0.0003589,2]
[314850623,1708593064147,-500.0,0.0003589,2]
[314850624,1708593064156,-500.0,0.0003589,2]
[314850625,1708593064167,-500.0,0.0003589,2]
[314850626,1708593064176,-985.04,0.0003589,2]
[314850627,1708593064185,-734.9,0.0003589,2]
[314850628,1708593064195,-500.0,0.0003589,2]
[314850629,1708593064204,-582.45,0.0003589,2]
[314850630,1708593064213,-500.0,0.0003589,2]
[314850631,1708593064223,-500.0,0.0003589,2]
[314850632,1708593064232,-500.0,0.0003589,2]
[314850633,1708593064241,-500.0,0.0003589,2]
[314850634,1708593064252,-500.0,0.0003589,2]
[314850635,1708593064262,-500.0,0.0003589,2]
[314850636,1708593064271,-463.48406193,0.0003589,2]
[314850637,1708593064281,-500.0,0.0003589,2]
[314850638,1708593064291,-838.67,0.0003589,2]
[314850639,1708593064301,-210.38947636,0.0003589,2]
[314850640,1708593064311,-500.0,0.0003589,2]
[314850641,1708593064320,-500.0,0.0003589,2]
[314850642,1708593064330,-500.0,0.0003589,2]
[314850643,1708593064339,-500.0,0.0003589,2]
[314850644,1708593064349,-500.0,0.0003589,2]
[314850645,1708593064359,-677.42,0.0003589,2]
[314850646,1708593064368,-500.0,0.0003589,2]
[314850647,1708593064377,-508.0073543,0.0003589,2]
[314850648,1708593064386,-714.02,0.0003589,2]
[314850649,1708593064396,-500.0,0.0003589,2]
[314850650,1708593064405,-500.0,0.0003589,2]
[314850651,1708593064414,-520.51,0.0003589,2]
[314850652,1708593064424,-500.0,0.0003589,2]
[314850653,1708593064433,-500.0,0.0003589,2]
[314850654,1708593064443,-500.0,0.0003589,2]
[314850655,1708593064452,-518.79496622,0.0003589,2]
[314850656,1708593064462,-812.64,0.0003589,2]
[314850657,1708593064472,-1068.2,0.0003589,2]
[314850658,1708593064481,-500.0,0.0003589,2]
[314850659,1708593064491,-500.0,0.0003589,2]
[314850660,1708593064509,-500.0,0.0003589,2]
[314850661,1708593064520,-559.78,0.0003589,2]
[314850662,1708593064530,-500.0,0.0003589,2]
[314850663,1708593064539,-500.0,0.0003589,2]
[314850664,1708593064549,-662.07,0.0003589,2]
[314850665,1708593064558,-500.0,0.0003589,2]
[314850666,1708593064568,-501.96562911,0.0003589,2]
[314850667,1708593064578,-594.31,0.0003589,2]
[314850668,1708593064588,-500.0,0.0003589,2]
[314850669,1708593064598,-500.0,0.0003589,2]
[314850670,1708593064608,-500.0,0.0003589,2]
[314850671,1708593064618,-161.24193541,0.0003589,2]
[314850672,1708593064627,-507.66548004,0.0003589,2]
[314850673,1708593064637,-641.89,0.0003589,2]
[314850674,1708593064646,-420.60966774,0.0003589,2]
[314850675,1708593064656,-500.0,0.0003589,2]
[314850676,1708593064666,-529.76346139,0.0003589,2]
[314850677,1708593064676,-597.08,0.0003589,2]
[314850678,1708593064685,-1334.85,0.0003589,2]
[314850679,1708593064694,-500.0,0.0003589,2]
[314850680,1708593064704,-545.25,0.0003589,2]
[314850681,1708593064713,-679.35,0.0003589,2]
[314850682,1708593064723,-542.79690781,0.0003589,2]
[314850683,1708593064732,-500.0,0.0003589,2]
[314850684,1708593064741,-1053.64,0.0003589,2]
[314850685,1708593064751,-720.73,0.0003589,2]
[314850686,1708593064760,-500.0,0.0003589,2]
[314850687,1708593064770,-513.85676204,0.0003589,2]
[314850688,1708593064779,-500.0,0.0003589,2]
[314850689,1708593064789,-500.0,0.0003589,2]
[314850690,1708593064799,-500.0,0.0003589,2]
[314850691,1708593064808,-500.0,0.0003589,2]
[314850692,1708593064818,-500.0,0.0003589,2]
[314850693,1708593064828,-618.42,0.0003589,2]
[314850694,1708593064837,-905.59,0.0003589,2]
[314850695,1708593064847,-500.0,0.0003589,2]
[314850696,1708593064857,-730.1,0.0003589,2]
[314850697,1708593064866,-523.23712333,0.0003589,2]
[314850698,1708593064876,-500.0,0.0003589,2]
[314850699,1708593064886,-500.0,0.0003589,2]
[314850700,1708593064895,-591.18,0.0003589,2]
[314850701,1708593064905,-500.0,0.0003589,2]
[314850702,1708593064914,-500.0,0.0003589,2]
[314850703,1708593064924,-504.27382183,0.0003589,2]
[314850704,1708593064933,-500.0,0.0003589,2]
[314850705,1708593064943,-500.0,0.0003589,2]
[314850706,1708593064953,-179.0,0.0003589,2]
[314850707,1708593064962,-500.0,0.0003589,2]
[314850708,1708593064973,-1242.78,0.0003589,2]
[314850709,1708593064983,-500.0,0.0003589,2]
[314850710,1708593064992,-594.3,0.0003589,2]
[314850711,1708593065002,-901.5,0.0003589,2]
[314850712,1708593065011,-500.0,0.0003589,2]
[314850713,1708593065020,-500.0,0.0003589,2]
[314850714,1708593065030,-958.0,0.0003589,2]
[314850715,1708593065044,-500.0,0.0003589,2]
[314850716,1708593065053,-500.0,0.0003589,2]
[314850717,1708593065064,-582.57,0.0003589,2]
[314850718,1708593065074,-500.0,0.0003589,2]
[314850719,1708593065084,-500.0,0.0003589,2]
[314850720,1708593065097,-555.83,0.0003589,2]
[314850721,1708593065106,-1000.0,0.0003589,7]
[314850722,1708593065115,-250.94661152,0.0003589,2]
[314850723,1708593065125,-500.0,0.0003589,2]
[314850724,1708593065135,-706.2,0.0003589,2]
[314850725,1708593065145,-500.0,0.0003589,2]
[314850726,1708593065154,-1930.84,0.0003589,2]
[314850727,1708593065164,-349.62818135,0.0003589,2]
[314850728,1708593065174,-360.17044144,0.0003589,2]
[314850729,1708593065185,-500.0,0.0003589,2]
[314850730,1708593065194,-844.76,0.0003589,2]
[314850731,1708593065204,-500.0,0.0003589,2]
[314850732,1708593065213,-611.17,0.0003589,2]
[314850733,1708593065223,-521.41,0.0003589,2]
[314850734,1708593065233,-500.0,0.0003589,2]
[314850735,1708593065242,-500.0,0.0003589,2]
[314850736,1708593065252,-702.51,0.0003589,2]
[314850737,1708593065261,-500.0,0.0003589,2]
[314850738,1708593065271,-500.0,0.0003589,2]
[314850739,1708593065281,-661.65,0.0003589,2]
[314850740,1708593065291,-500.0,0.0003589,2]
[314850741,1708593065300,-514.06558339,0.0003589,2]
[314850742,1708593065310,-500.0,0.0003589,2]
[314850743,1708593065319,-222.53740234,0.0003589,2]
[314850744,1708593065329,-500.0,0.0003589,2]
[314850745,1708593065338,-811.19,0.0003589,2]
[314850746,1708593065348,-500.0,0.0003589,2]
[314850747,1708593065358,-500.0,0.0003589,2]
[314850748,1708593065368,-500.0,0.0003589,2]
[314850749,1708593065377,-500.0,0.0003589,2]
[314850750,1708593065387,-500.0,0.0003589,2]
[314850751,1708593065396,-500.0,0.0003589,2]
[314850752,1708593065406,-602.71,0.0003589,2]
[314850753,1708593065416,-500.0,0.0003589,2]
[314850754,1708593065425,-500.0,0.0003589,2]
[314850755,1708593065435,-509.54018765,0.0003589,2]
[314850756,1708593065445,-500.0,0.0003589,2]
[314850757,1708593065454,-562.55,0.0003589,2]
[314850758,1708593065465,-500.0,0.0003589,2]
[314850759,1708593065477,-501.74,0.0003589,2]
[314850760,1708593065487,-500.0,0.0003589,2]
[314850761,1708593065497,-601.23,0.0003589,2]
[314850762,1708593065508,-500.0,0.0003589,2]
[314850763,1708593065518,-1040.59,0.0003589,2]
[314850764,1708593065529,-500.0,0.0003589,2]
[314850765,1708593065539,-500.0,0.0003589,2]
[314850766,1708593065549,-500.0,0.0003589,2]
[314850767,1708593065560,-617.85474148,0.0003589,2]
[314850768,1708593065573,-500.0,0.0003589,2]
[314850769,1708593065584,-778.31,0.0003589,2]
[314850770,1708593065594,-587.66,0.0003589,2]
[314850771,1708593065605,-500.0,0.0003589,2]
[314850772,1708593065615,-500.0,0.0003589,2]
[314850773,1708593065625,-500.0,0.0003589,2]
[314850774,1708593065636,-500.0,0.0003589,2]
[314850775,1708593065646,-500.0,0.0003589,2]
[314850776,1708593065657,-500.0,0.0003589,2]
[314850777,1708593065668,-641.72,0.0003589,2]
[314850778,1708593065684,-500.0,0.0003589,2]
[314850779,1708593065694,-500.0,0.0003589,2]
[314850780,1708593065705,-519.15140673,0.0003589,2]
[314850781,1708593065716,-500.0,0.0003589,2]
[314850782,1708593065728,-1138.43,0.0003589,2]
[314850783,1708593065739,-898.56,0.0003589,2]
[314850784,1708593065751,-500.0,0.0003589,2]
[314850785,1708593065762,-500.0,0.0003589,2]
[314850786,1708593065773,-500.0,0.0003589,2]
[314850787,1708593065785,-1000.0,0.0003589,7]
[314850788,1708593065797,-671.89,0.0003589,2]
[314850789,1708593065809,-500.0,0.0003589,2]
[314850790,1708593065820,-573.1,0.0003589,2]
[314850791,1708593065831,-508.63474513,0.0003589,2]
[314850792,1708593065841,-504.22782518,0.0003589,2]
[314850793,1708593065852,-500.0,0.0003589,2]
[314850794,1708593065863,-639.01,0.0003589,2]
[314850795,1708593065875,-500.0,0.0003589,2]
[314850796,1708593065886,-597.26,0.0003589,2]
[314850797,1708593065897,-500.0,0.0003589,2]
[314850798,1708593065908,-500.0,0.0003589,2]
[314850799,1708593065919,-500.0,0.0003589,2]
[314850800,1708593065930,-500.0,0.0003589,2]
[314850801,1708593065942,-1080.08,0.0003589,2]
[314850802,1708593065953,-1426.87,0.0003589,2]
[314850803,1708593065964,-498.14396783,0.0003589,2]
[314850804,1708593065977,-528.2,0.0003589,2]
[314850805,1708593065988,-506.74591003,0.0003589,2]
[314850806,1708593065999,-500.0,0.0003589,2]
[314850807,1708593066010,-500.0,0.0003589,2]
[314850808,1708593066021,-500.0,0.0003589,2]
[314850809,1708593066031,-500.0,0.0003589,2]
[314850810,1708593066041,-500.0,0.0003589,2]
[314850811,1708593066051,-500.0,0.0003589,2]
[314850812,1708593066061,-579.34,0.0003589,2]
[314850813,1708593066071,-500.0,0.0003589,2]
[314850814,1708593066082,-500.0,0.0003589,2]
[314850815,1708593066097,-429.389881,0.0003589,2]
[314850816,1708593066110,-500.0,0.0003589,2]
[314850817,1708593066120,-500.0,0.0003589,2]
[314850818,1708593066347,-954.91,0.0003589,2]
[314850819,1708593066356,-500.0,0.0003589,2]
[314850820,1708593066366,-500.0,0.0003589,2]
[314850821,1708593066376,-500.0,0.0003589,2]
[314850822,1708593066385,-565.76583938,0.0003589,2]
[314850823,1708593066394,-500.0,0.0003589,2]
[314850824,1708593066404,-500.0,0.0003589,2]
[314850825,1708593066413,-500.0,0.0003589,2]
[314850826,1708593066422,-500.0,0.0003589,2]
[314850827,1708593066431,-500.0,0.0003589,2]
[314850828,1708593066440,-603.67,0.0003589,2]
[314850829,1708593066449,-500.0,0.0003589,2]
[314850830,1708593066458,-500.0,0.0003589,2]
[314850831,1708593066466,-500.0,0.0003589,2]
[314850832,1708593066476,-787.58,0.0003589,2]
[314850833,1708593066485,-500.0,0.0003589,2]
[314850834,1708593066494,-648.18,0.0003589,2]
[314850835,1708593066503,-1000.0,0.0003589,7]
[314850836,1708593066512,-508.79556699,0.0003589,2]
[314850837,1708593066522,-501.86,0.0003589,2]
[314850838,1708593066531,-500.0,0.0003589,2]
[314850839,1708593066540,-500.0,0.0003589,2]
[314850840,1708593066549,-500.0,0.0003589,2]
[314850841,1708593066559,-826.97,0.0003589,2]
[314850842,1708593066568,-500.0,0.0003589,2]
[314850843,1708593066577,-577.54715044,0.0003589,2]
[314850844,1708593066586,-500.0,0.0003589,2]
[314850845,1708593066595,-500.0,0.0003589,2]
[314850846,1708593066604,-500.0,0.0003589,2]
[314850847,1708593066614,-500.0,0.0003589,2]
[314850848,1708593066623,-500.0,0.0003589,2]
[314850849,1708593066637,-500.0,0.0003589,2]
[314850850,1708593066646,-651.22,0.0003589,2]
[314850851,1708593066656,-626.32,0.0003589,2]
[314850852,1708593066665,-500.0,0.0003589,2]
[314850853,1708593066674,-500.0,0.0003589,2]
[314850854,1708593066683,-500.0,0.0003589,2]
[314850855,1708593066692,-500.0,0.0003589,2]
[314850856,1708593066701,-500.0,0.0003589,2]
[314850857,1708593066710,-991.42,0.0003589,2]
[314850858,1708593066719,-500.0,0.0003589,2]
[314850859,1708593066729,-500.0,0.0003589,2]
[314850860,1708593066738,-500.0,0.0003589,2]
[314850861,1708593066748,-500.0,0.0003589,2]
[314850862,1708593066758,-500.0,0.0003589,2]
[314850863,1708593066767,-500.0,0.0003589,2]
[314850864,1708593066776,-521.78,0.0003589,2]
[314850865,1708593066786,-737.53,0.0003589,2]
[314850866,1708593066796,-500.0,0.0003589,2]
[314850867,1708593066805,-500.0,0.0003589,2]
[314850868,1708593066815,-500.0,0.0003589,2]
[314850869,1708593066824,-879.44,0.0003589,2]
[314850870,1708593066833,-910.37,0.0003589,2]
[314850871,1708593066843,-500.0,0.0003589,2]
[314850872,1708593066852,-526.67259887,0.0003589,2]
[314850873,1708593066862,-500.0,0.0003589,2]
[314850874,1708593066871,-500.0,0.0003589,2]
[314850875,1708593066881,-500.0,0.0003589,2]
[314850876,1708593066890,-934.28,0.0003589,2]
[314850877,1708593066899,-500.0,0.0003589,2]
[314850878,1708593066908,-500.0,0.0003589,2]
[314850879,1708593066917,-625.68032067,0.0003589,2]
[314850880,1708593066926,-586.55,0.0003589,2]
[314850881,1708593066935,-500.0,0.0003589,2]
[314850882,1708593066944,-567.33,0.0003589,2]
[314850883,1708593066953,-936.74,0.0003589,2]
[314850884,1708593066962,-1295.55,0.0003589,2]
[314850885,1708593066971,-562.52,0.0003589,2]
[314850886,1708593066981,-500.0,0.0003589,2]
[314850887,1708593066990,-512.02198916,0.0003589,2]
[314850888,1708593066999,-849.16,0.0003589,2]
[314850889,1708593067008,-643.01,0.0003589,2]
[314850890,1708593067017,-2152.2,0.0003589,2]
[314850891,1708593067026,-500.0,0.0003589,2]
[314850892,1708593067035,-500.0,0.0003589,2]
[314850893,1708593067044,-1435.97,0.0003589,2]
[314850894,1708593067053,-500.0,0.0003589,2]
[314850895,1708593067062,-500.0,0.0003589,2]
[314850896,1708593067071,-500.0,0.0003589,2]
[314850897,1708593067084,-503.91849878,0.0003589,2]
[314850898,1708593067093,-1228.56,0.0003589,2]
[314850899,1708593067102,-500.0,0.0003589,2]
[314850900,1708593067111,-500.0,0.0003589,2]
[314850901,1708593067121,-500.0,0.0003589,2]
[314850902,1708593067130,-500.0,0.0003589,2]
[314850903,1708593067139,-697.01,0.0003589,2]
[314850904,1708593067148,-500.0,0.0003589,2]
[314850905,1708593067157,-500.0,0.0003589,2]
[314850906,1708593067168,-500.0,0.0003589,2]
[314850907,1708593067176,-500.0,0.0003589,2]
[314850908,1708593067185,-702.7,0.0003589,2]
[314850909,1708593067194,-500.0,0.0003589,2]
[314850910,1708593067203,-933.61,0.0003589,2]
[314850911,1708593067212,-500.0,0.0003589,2]
[314850912,1708593067222,-507.89838842,0.0003589,14]
[314850913,1708593067232,-748.97,0.0003589,2]
[314850914,1708593067242,-547.19,0.0003589,2]
[314850915,1708593067251,-500.0,0.0003589,2]
[314850916,1708593067259,-500.0,0.0003589,2]
[314850917,1708593067268,-500.0,0.0003589,2]
[314850918,1708593067278,-500.0,0.0003589,2]
[314850919,1708593067288,-1078.84,0.0003589,2]
[314850920,1708593067297,-765.24,0.0003589,2]
[314850921,1708593067306,-500.0,0.0003589,2]
[314850922,1708593067315,-500.0,0.0003589,2]
[314850923,1708593067324,-1348.67,0.0003589,2]
[314850924,1708593067333,-500.0,0.0003589,2]
[314850925,1708593067342,-500.0,0.0003589,2]
[314850926,1708593067351,-1071.85,0.0003589,2]
[314850927,1708593067360,-897.87,0.0003589,2]
[314850928,1708593067369,-500.0,0.0003589,2]
[314850929,1708593067378,-720.34,0.0003589,2]
[314850930,1708593067387,-500.0,0.0003589,2]
[314850931,1708593067396,-500.0,0.0003589,2]
[314850932,1708593067406,-500.0,0.0003589,2]
[314850933,1708593067415,-500.0,0.0003589,2]
[314850934,1708593067424,-500.0,0.0003589,2]
[314850935,1708593067433,-500.0,0.0003589,2]
[314850936,1708593067442,-657.4,0.0003589,2]
[314850937,1708593067451,-500.0,0.0003589,2]
[314850938,1708593067460,-500.0,0.0003589,2]
[314850939,1708593067470,-500.0,0.0003589,2]
[314850940,1708593067479,-500.0,0.0003589,2]
[314850941,1708593067489,-1000.28,0.0003589,2]
[314850942,1708593067498,-500.0,0.0003589,2]
[314850943,1708593067507,-500.0,0.0003589,2]
[314850944,1708593067515,-578.45,0.0003589,2]
[314850945,1708593067524,-742.55,0.0003589,2]
[314850946,1708593067533,-500.0,0.0003589,2]
[314850947,1708593067542,-500.0,0.0003589,2]
[314850948,1708593067550,-500.0,0.0003589,2]
[314850949,1708593067559,-500.0,0.0003589,2]
[314850950,1708593067568,-500.0,0.0003589,2]
[314850951,1708593067577,-500.0,0.0003589,2]
[314850952,1708593067586,-1307.02,0.0003589,2]
[314850953,1708593067595,-500.0,0.0003589,2]
[314850954,1708593067604,-500.0,0.0003589,2]
[314850955,1708593067613,-500.0,0.0003589,2]
[314850956,1708593067622,-692.4,0.0003589,2]
[314850957,1708593067630,-500.0,0.0003589,2]
[314850958,1708593067639,-500.0,0.0003589,2]
[314850959,1708593067648,-1078.14,0.0003589,2]
[314850960,1708593067657,-500.0,0.0003589,2]
[314850961,1708593067666,-500.0,0.0003589,2]
[314850962,1708593067675,-578.4326049,0.0003589,2]
[314850963,1708593067684,-500.0,0.0003589,2]
[314850964,1708593067693,-500.0,0.0003589,2]
[314850965,1708593067703,-500.0,0.0003589,2]
[314850966,1708593067711,-500.0,0.0003589,2]
[314850967,1708593067721,-500.0,0.0003589,2]
[314850968,1708593067731,-500.0,0.0003589,2]
[314850969,1708593067740,-500.0,0.0003589,2]
[314850970,1708593067749,-500.0,0.0003589,2]
[314850971,1708593067758,-500.0,0.0003589,2]
[314850972,1708593067767,-150.0,0.0003589,2]
[314850973,1708593067777,-500.0,0.0003589,2]
[314850974,1708593067786,-500.0,0.0003589,2]
[314850975,1708593067795,-500.0,0.0003589,2]
[314850976,1708593067804,-1359.2,0.0003589,2]
[314850977,1708593067813,-500.0,0.0003589,2]
[314850978,1708593067823,-500.0,0.0003589,2]
[314850979,1708593067832,-798.39,0.0003589,2]
[314850980,1708593067841,-500.0,0.0003589,2]
[314850981,1708593067851,-500.0,0.0003589,2]
[314850982,1708593067860,-3220.68042907,0.0003589,2]
[314850983,1708593067870,-500.0,0.0003589,2]
[314850984,1708593068233,-908.25,0.0003589,2]
[314850985,1708593068248,-544.9852888,0.0003589,2]
[314850986,1708593068258,-1133.26,0.0003589,2]
[314850987,1708593068267,-500.0,0.0003589,2]
[314850988,1708593068277,-562.73,0.0003589,2]
[314850989,1708593068286,-500.0,0.0003589,2]
[314850990,1708593068296,-500.0,0.0003589,2]
[314850991,1708593068305,-501.58,0.0003589,2]
[314850992,1708593068314,-649.67,0.0003589,2]
[314850993,1708593068324,-971.65,0.0003589,2]
[314850994,1708593068333,-500.0,0.0003589,2]
[314850995,1708593068342,-500.0,0.0003589,2]
[314850996,1708593068351,-503.37726577,0.0003589,2]
[314850997,1708593068361,-500.0,0.0003589,2]
[314850998,1708593068370,-500.0,0.0003589,2]
[314850999,1708593068380,-500.0,0.0003589,2]
[314851000,1708593068389,-500.0,0.0003589,2]
[314851001,1708593068399,-500.0,0.0003589,2]
[314851002,1708593068408,-873.89,0.0003589,2]
[314851003,1708593068417,-500.0,0.0003589,2]
[314851004,1708593068426,-500.0,0.0003589,2]
[314851005,1708593068435,-1221.72,0.0003589,2]
[314851006,1708593068444,-500.0,0.0003589,2]
[314851007,1708593068454,-857.81,0.0003589,2]
[314851008,1708593068463,-500.0,0.0003589,2]
[314851009,1708593068472,-500.0,0.0003589,2]
[314851010,1708593068483,-500.0,0.0003589,2]
[314851011,1708593068491,-500.0,0.0003589,2]
[314851012,1708593068500,-500.0,0.0003589,2]
[314851013,1708593068510,-500.0,0.0003589,2]
[314851014,1708593068519,-569.18,0.0003589,2]
[314851015,1708593068528,-500.0,0.0003589,2]
[314851016,1708593068537,-382.03312474,0.0003589,2]
[314851017,1708593068545,-500.0,0.0003589,2]
[314851018,1708593068554,-500.0,0.0003589,2]
[314851019,1708593068563,-500.0,0.0003589,2]
[314851020,1708593068572,-500.0,0.0003589,2]
[314851021,1708593068581,-500.0,0.0003589,2]
[314851022,1708593068590,-159.81145744,0.0003589,2]
[314851023,1708593068599,-500.0,0.0003589,2]
[314851024,1708593068607,-500.0,0.0003589,2]
[314851025,1708593068616,-916.42,0.0003589,2]
[314851026,1708593068625,-500.0,0.0003589,2]
[314851027,1708593068635,-950.18,0.0003589,2]
[314851028,1708593068644,-500.0,0.0003589,2]
[314851029,1708593068653,-1123.54,0.0003589,2]
[314851030,1708593068662,-505.63806369,0.0003589,2]
[314851031,1708593068671,-724.57,0.0003589,2]
[314851032,1708593068680,-548.88040208,0.0003589,2]
[314851033,1708593068689,-500.0,0.0003589,2]
[314851034,1708593068698,-500.0,0.0003589,2]
[314851035,1708593068708,-500.0,0.0003589,2]
[314851036,1708593068717,-803.39,0.0003589,2]
[314851037,1708593068728,-500.0,0.0003589,2]
[314851038,1708593068737,-615.98,0.0003589,2]
[314851039,1708593068747,-509.08711727,0.0003589,2]
[314851040,1708593068757,-500.0,0.0003589,2]
[314851041,1708593068767,-214.17116011,0.0003589,2]
[314851042,1708593068777,-506.52650878,0.0003589,2]
[314851043,1708593068786,-500.0,0.0003589,2]
[314851044,1708593068796,-500.0,0.0003589,2]
[314851045,1708593068805,-500.0,0.0003589,2]
[314851046,1708593068814,-605.66,0.0003589,2]
[314851047,1708593068824,-500.0,0.0003589,2]
[314851048,1708593068833,-500.0,0.0003589,2]
[314851049,1708593068843,-500.0,0.0003589,2]
[314851050,1708593068852,-639.59,0.0003589,2]
[314851051,1708593068861,-500.0,0.0003589,2]
[314851052,1708593068871,-1477.01,0.0003589,2]
[314851053,1708593068880,-759.81,0.0003589,2]
[314851054,1708593068889,-1372.36,0.0003589,2]
[314851055,1708593068899,-500.0,0.0003589,2]
[314851056,1708593068908,-500.0,0.0003589,2]
[314851057,1708593068918,-500.0,0.0003589,2]
[314851058,1708593068928,-545.78,0.0003589,2]
[314851059,1708593068938,-500.0,0.0003589,2]
[314851060,1708593068948,-500.0,0.0003589,2]
[314851061,1708593068958,-522.97473815,0.0003589,2]
[314851062,1708593068967,-500.0,0.0003589,2]
[314851063,1708593068977,-500.0,0.0003589,2]
[314851064,1708593068987,-500.0,0.0003589,2]
[314851065,1708593068997,-500.0,0.0003589,2]
[314851066,1708593069006,-500.0,0.0003589,2]
[314851067,1708593069015,-500.0,0.0003589,2]
[314851068,1708593069025,-540.34,0.0003589,2]
[314851069,1708593069035,-996.63,0.0003589,2]
[314851070,1708593069044,-1185.74,0.0003589,2]
[314851071,1708593069053,-500.0,0.0003589,2]
[314851072,1708593069063,-1117.23,0.0003589,2]
[314851073,1708593069072,-500.0,0.0003589,2]
[314851074,1708593069082,-8813.9,0.0003589,2]
[314851075,1708593069095,-500.0,0.0003589,2]
[314851076,1708593069105,-500.0,0.0003589,2]
[314851077,1708593069114,-521.05762313,0.0003589,2]
[314851078,1708593069124,-500.13,0.0003589,2]
[314851079,1708593069134,-2502.9,0.0003589,2]
[314851080,1708593069144,-500.0,0.0003589,2]
[314851081,1708593069153,-564.94,0.0003589,2]
[314851082,1708593069163,-500.0,0.0003589,2]
[314851083,1708593069174,-500.0,0.0003589,2]
[314851084,1708593069184,-500.0,0.0003589,2]
[314851085,1708593069193,-804.91,0.0003589,2]
[314851086,1708593069202,-1082.5,0.0003589,2]
[314851087,1708593069212,-500.0,0.0003589,2]
[314851088,1708593069222,-500.0,0.0003589,2]
[314851089,1708593069231,-500.0,0.0003589,2]